bitfinex-derivatives/quotes_ETHF0:USTF0_20230402
["timestamp","ask_amount","ask_price","bid_price","bid_amount"]
[1680424934660,6.14416214,1819.0,1818.9,0.00041671]
[1680424940965,17.90049589,1819.0,1818.9,0.00041671]
[1680424945072,17.89433848,1819.0,1818.9,0.00041671]
[1680424950173,17.07733848,1819.0,1818.9,0.00041671]
[1680424950380,15.31510228,1819.0,1818.9,0.81841671]
[1680424950574,2.12126024,1819.0,1818.9,0.81841671]
[1680424950765,1.43940639,1819.0,1818.9,0.81841671]
[1680424950974,1.43940639,1819.0,1818.9,0.85516772]
[1680424953178,1.43940639,1819.1,1818.9,0.85516772]
[1680424953381,2.12119905,1819.1,1818.9,0.85516772]
[1680424955274,1.15090853,1819.0,1818.9,0.85516772]
[1680424956983,1.15090853,1819.0,1818.9,0.86116772]
[1680424977012,1.15090853,1819.0,1818.9,0.03716772]
[1680424983508,1.15090853,1819.0,1818.9,0.61362479]
[1680424992918,1.15090853,1819.0,1818.9,1.47826164]
[1680424993115,1.15090853,1819.0,1818.9,0.90180457]
[1680424993617,1.15090853,1819.0,1818.9,1.47856033]
[1680424993818,1.15090853,1819.0,1818.9,1.47814362]
[1680424995116,1.15090853,1819.0,1818.9,0.90138786]
[1680425003328,1.96790853,1819.0,1818.9,1.47830531]
[1680425003524,6.46420639,1819.0,1818.9,0.61366846]
[1680425003829,7.14600897,1819.0,1818.9,0.61366846]
[1680425004323,20.33923056,1819.0,1818.8,1.4415543]
[1680425004522,2.15145019,1818.9,1818.8,1.4415543]
[1680425004720,2.15145019,1818.9,1818.8,0.86463685]
[1680425005226,2.15145019,1818.9,1818.8,1.44154096]
[1680425005426,2.15145019,1818.9,1818.8,0.57690411]
[1680425005827,2.15145019,1818.9,1818.8,1.44154096]
[1680425006027,1.15145019,1818.9,1818.8,1.44154096]
[1680425006918,0.817,1818.9,1818.8,0.57690411]
[1680425007119,2.96832579,1818.9,1818.8,0.57690411]
[1680425007721,1.817,1818.9,1818.8,0.57690411]
[1680425008533,0.817,1818.9,1818.8,0.57690411]
[1680425009225,1.96811384,1818.9,1818.8,0.57690411]
[1680425009619,0.817,1818.9,1818.8,0.57690411]
[1680425009830,1.96810475,1818.9,1818.8,0.57690411]
[1680425011725,1.96801049,1818.9,1818.8,0.57690411]
[1680425015737,1.96801049,1818.9,1818.7,1.44154096]
[1680425016030,3.2078,1818.8,1818.7,0.86463685]
[1680425017231,4.07060373,1818.8,1818.7,1.44124159]
[1680425019131,4.88960373,1818.8,1818.7,1.44124159]
[1680425019737,4.0268,1818.8,1818.7,0.57660474]
[1680425019934,4.88955175,1818.8,1818.7,1.44124159]
[1680425020139,4.88955175,1818.8,1818.7,0.86463685]
[1680425024045,4.88955175,1818.8,1818.7,0.85889849]
[1680425036961,4.07055175,1818.8,1818.7,0.85889849]
[1680425043069,3.2078,1818.8,1818.7,0.85889849]
[1680425043575,1.15101049,1818.9,1818.7,1.68289849]
[1680425043780,0.86318617,1818.8,1818.7,1.97753798]
[1680425044078,1.4386567,1818.8,1818.7,2.97753798]
[1680425044970,0.57547053,1818.8,1818.7,2.97753798]
[1680425045173,1.4386567,1818.8,1818.7,2.97753798]
[1680425046462,0.86318617,1818.8,1818.7,2.97753798]
[1680425047270,0.57551333,1818.8,1818.7,3.57687733]
[1680425048363,0.57551333,1818.8,1818.7,2.97753798]
[1680425048969,1.4386995,1818.8,1818.7,3.57690172]
[1680425049472,0.86318617,1818.8,1818.7,2.97753798]
[1680425049666,0.86318617,1818.8,1818.7,3.5769629]
[1680425050273,1.43879773,1818.8,1818.7,2.97753798]
[1680425051479,1.43879773,1818.8,1818.7,1.97753798]
[1680425054579,0.57561156,1818.8,1818.7,1.97753798]
[1680425055779,0.57561156,1818.8,1818.7,2.57681725]
[1680425057776,0.57561156,1818.8,1818.7,1.97753798]
[1680425058477,0.57561156,1818.8,1818.7,2.57683308]
[1680425059379,0.57561156,1818.8,1818.7,1.97753798]
[1680425059575,0.57561156,1818.8,1818.7,2.57682804]
[1680425059781,0.57561156,1818.8,1818.7,1.97753798]
[1680425059979,0.86318617,1818.8,1818.7,0.824]
[1680425060386,0.86318617,1818.8,1818.7,1.15353798]
[1680425060582,0.86318617,1818.8,1818.6,1.15353798]
[1680425060782,0.57550692,1818.7,1818.6,1.75288403]
[1680425061285,0.57550692,1818.7,1818.6,7.64165491]
[1680425073299,0.57550692,1818.7,1818.6,1.75288403]
[1680425077700,0.57550692,1818.7,1818.6,7.07321326]
[1680425078300,1.43869309,1818.8,1818.6,7.07321326]
[1680425078507,1.43869309,1818.8,1818.7,3.57685537]
[1680425078804,0.57550692,1818.8,1818.7,3.57694904]
[1680425078999,0.57550692,1818.8,1818.7,9.35422348]
[1680425079703,0.57550692,1818.8,1818.7,8.20071416]
[1680425080296,0.57550692,1818.8,1818.7,9.35415199]
[1680425082101,0.57550692,1818.8,1818.7,8.20071416]
[1680425082305,0.57550692,1818.8,1818.7,9.3541274]
[1680425085509,0.57550692,1818.8,1818.7,8.20071416]
[1680425091018,1.43869309,1818.9,1818.7,9.64278137]
[1680425091214,1.43869309,1818.9,1818.8,2.97631424]
[1680425096221,0.57550692,1818.9,1818.8,2.97631424]
[1680425096617,1.43869309,1818.9,1818.8,2.97631424]
[1680425097022,1.43869309,1818.9,1818.8,2.97731424]
[1680425098424,0.57550692,1818.9,1818.8,2.97731424]
[1680425099228,0.57550692,1818.9,1818.8,2.97231424]
[1680425101921,0.57090118,1818.9,1818.8,2.97231424]
[1680425103325,0.57090118,1818.9,1818.8,1.97231424]
[1680425106922,0.57090118,1818.9,1818.8,1.97631424]
[1680425113329,0.57090118,1818.9,1818.8,0.823]
[1680425113534,0.86318617,1818.9,1818.8,1.68777956]
[1680425113929,0.86318617,1818.9,1818.8,0.823]
[1680425114436,0.86318617,1818.9,1818.8,1.68783087]
[1680425114625,0.86318617,1818.9,1818.8,1.6878313]
[1680425115039,0.86318617,1818.9,1818.8,1.68783329]
[1680425115338,0.86318617,1818.9,1818.8,0.823]
[1680425115526,0.86318617,1818.9,1818.8,1.68785504]
[1680425115731,0.86318617,1818.9,1818.8,0.86485504]
[1680425117044,1.68518617,1818.9,1818.8,0.86485504]
[1680425118135,1.68518617,1818.9,1818.7,1.15331424]
[1680425118336,1.68518617,1818.9,1818.8,0.86494862]
[1680425119636,1.68518617,1818.9,1818.7,1.15331424]
[1680425119836,1.68518617,1818.9,1818.7,1.72531573]
[1680425120238,1.68518617,1818.9,1818.8,7.42573052]
[1680425120626,1.68518617,1818.9,1818.8,6.27241628]
[1680425120931,1.68518617,1818.9,1818.8,7.42573052]
[1680425121537,1.68518617,1818.9,1818.8,6.27241628]
[1680425122132,1.68518617,1818.9,1818.8,7.42573052]
[1680425123337,1.68534829,1818.9,1818.8,6.27241628]
[1680425123537,1.97301049,1818.9,1818.8,7.13777325]
[1680425129343,0.822,1818.9,1818.8,7.13777325]
[1680425129746,1.97301049,1818.9,1818.8,7.13777325]
[1680425130044,0.822,1818.9,1818.8,7.13777325]
[1680425151250,1.97301049,1818.9,1818.8,7.13777325]
[1680425151658,1.97301049,1818.9,1818.8,0.86535697]
[1680425160657,1.97301049,1818.9,1818.7,1.15331424]
[1680425160853,1.68635392,1818.8,1818.7,1.72557113]
[1680425161462,1.68635392,1818.8,1818.7,0.57225689]
[1680425161862,1.68635392,1818.8,1818.7,1.72624641]
[1680425165668,1.68635392,1818.8,1818.7,0.57225689]
[1680425165858,1.68635392,1818.8,1818.7,1.72634987]
[1680425166966,0.86335392,1818.8,1818.7,1.72634987]
[1680425167368,0.86335392,1818.8,1818.7,0.57225689]
[1680425169369,0.86335392,1818.8,1818.7,2.0143241]
[1680425169571,1.68735392,1818.9,1818.7,2.0143241]
[1680425169773,0.824,1818.9,1818.8,1.15406762]
[1680425170478,1.97501049,1818.9,1818.8,1.15406762]
[1680425170769,0.824,1818.9,1818.8,1.15406762]
[1680425172075,1.97501049,1818.9,1818.8,1.15406762]
[1680425176378,0.824,1818.9,1818.8,1.15406762]
[1680425176680,1.97501049,1818.9,1818.8,1.15406762]
[1680425179770,1.97501049,1818.9,1818.7,1.15406762]
[1680425179976,0.86362059,1818.8,1818.7,2.72637555]
[1680425180377,0.86362059,1818.8,1818.7,1.72637555]
[1680425181182,0.86362059,1818.8,1818.7,0.57230793]
[1680425181382,0.86362059,1818.8,1818.7,1.72632195]
[1680425206702,0.86362059,1818.8,1818.7,0.57230793]
[1680425207095,0.86362059,1818.8,1818.7,2.01437514]
[1680425213699,1.68762059,1818.9,1818.7,2.01437514]
[1680425213997,0.86362059,1818.8,1818.7,1.44206721]
[1680425214194,0.86362059,1818.8,1818.7,3.01441133]
[1680425216307,0.86362059,1818.8,1818.7,2.01441133]
[1680425216808,0.86362059,1818.8,1818.7,1.72636743]
[1680425217015,1.68762059,1818.8,1818.7,1.72636743]
[1680425219508,1.97569247,1818.8,1818.6,1.14717566]
[1680425219712,1.20768117,1818.8,1818.7,0.86555149]
[1680425219905,5.23948117,1818.8,1818.7,0.86555149]
[1680425225211,4.95146993,1818.8,1818.6,1.14717566]
[1680425225516,1.39479263,1818.7,1818.5,1.44206721]
[1680425225714,0.824,1818.6,1818.5,2.01420629]
[1680425227118,1.39779263,1818.6,1818.5,2.01420629]
[1680425227418,0.822,1818.6,1818.5,2.01420629]
[1680425230422,0.89175549,1818.6,1818.5,2.01420629]
[1680425232822,5.78723672,1818.6,1818.4,1.44206721]
[1680425233019,1.3995981,1818.5,1818.3,1.44206721]
[1680425233223,1.3995981,1818.5,1818.3,2.01414502]
[1680425236428,5.4263981,1818.4,1818.2,1.44206721]
[1680425236639,0.819,1818.3,1818.1,1.44206721]
[1680425236932,0.819,1818.3,1818.1,2.01363603]
[1680425237122,0.817,1818.2,1818.0,2.44206721]
[1680425237323,4.0248,1818.2,1818.1,0.57157606]
[1680425237627,4.6003981,1818.2,1818.1,0.86449206]
[1680425237829,4.74229349,1818.2,1818.1,0.86449206]
[1680425238827,4.16669539,1818.2,1818.1,0.57583866]
[1680425240630,5.56629349,1818.2,1818.0,0.57583866]
[1680425240835,1.3985981,1818.1,1817.8,0.86449206]
[1680425241137,4.0318,1817.9,1817.8,0.57536645]
[1680425242037,4.0318,1817.9,1817.5,2.44206721]
[1680425242038,4.8548,1817.9,1817.6,1.57536645]
[1680425242333,4.8548,1817.9,1817.6,0.57536645]
[1680425242334,4.0248,1817.7,1817.6,0.57536645]
[1680425242737,4.0248,1817.7,1817.5,0.57536645]
[1680425242940,0.824,1817.6,1817.5,0.57536645]
[1680425243134,0.824,1817.6,1817.4,1.43985851]
[1680425243438,3.2078,1817.5,1817.4,0.57536645]
[1680425243841,4.0308,1817.5,1817.4,0.57536645]
[1680425244341,0.823,1817.5,1817.4,1.43985851]
[1680425244541,0.823,1817.5,1817.4,0.86449206]
[1680425244941,0.823,1817.5,1817.4,1.4391261]
[1680425245329,0.823,1817.5,1817.4,0.57463404]
[1680425245531,1.07855323,1817.5,1817.4,0.57463404]
[1680425245944,0.25555323,1817.5,1817.4,0.57463404]
[1680425246139,4.0278,1817.7,1817.4,0.57463404]
[1680425246940,0.824,1817.6,1817.4,0.57463404]
[1680425247140,3.2078,1817.5,1817.3,2.4391261]
[1680425247647,3.2078,1817.5,1817.3,1.57463404]
[1680425248246,0.25555923,1817.4,1817.3,1.57463404]
[1680425248843,0.25555923,1817.4,1817.3,0.57463404]
[1680425249744,0.25555923,1817.4,1817.2,3.2571261]
[1680425249934,3.2078,1817.5,1817.3,0.57463404]
[1680425250340,0.25556368,1817.4,1817.3,0.57463404]
[1680425251247,0.824,1817.6,1817.3,0.57463404]
[1680425251639,0.824,1817.6,1817.2,3.2571261]
[1680425252251,0.824,1817.6,1817.3,5.91797948]
[1680425252539,0.81930504,1817.6,1817.4,1.0]
[1680425254849,4.0318,1817.9,1817.5,0.817]
[1680425255041,4.0318,1817.9,1817.6,1.0]
[1680425255238,0.824,1817.9,1817.6,1.0]
[1680425256643,4.0318,1817.9,1817.6,1.0]
[1680425257243,4.0318,1817.9,1817.5,0.817]
[1680425257438,4.0248,1817.9,1817.5,0.817]
[1680425257837,3.2078,1817.7,1817.5,0.817]
[1680425258248,4.0288,1817.7,1817.3,2.39863404]
[1680425258937,4.0288,1817.7,1817.4,5.73826996]
[1680425259142,4.0288,1817.7,1817.5,1.0]
[1680425259550,4.0288,1817.7,1817.4,5.73826996]
[1680425260453,0.1731266,1817.6,1817.4,5.73826996]
[1680425260950,4.0288,1817.7,1817.4,5.73826996]
[1680425261150,0.17312816,1817.6,1817.4,5.73826996]
[1680425261545,4.0288,1817.7,1817.4,5.73826996]
[1680425261949,0.17312972,1817.6,1817.4,5.73826996]
[1680425262246,4.0288,1817.7,1817.4,5.73826996]
[1680425262452,0.17313075,1817.5,1817.4,5.73826996]
[1680425262752,4.0288,1817.7,1817.4,5.73826996]
[1680425262964,0.17313183,1817.5,1817.4,5.73826996]
[1680425263260,4.0288,1817.7,1817.4,5.73826996]
[1680425263554,0.17313287,1817.5,1817.4,5.73826996]
[1680425263754,4.0288,1817.7,1817.4,5.73826996]
[1680425265953,0.824,1817.5,1817.4,5.73826996]
[1680425266757,0.824,1817.5,1817.4,6.312904]
[1680425266958,0.824,1817.5,1817.4,5.73826996]
[1680425267160,0.824,1817.5,1817.3,0.57463404]
[1680425267658,0.824,1817.5,1817.3,1.4391261]
[1680425269552,0.824,1817.5,1817.4,0.57463404]
[1680425274756,0.99715616,1817.5,1817.4,0.57463404]
[1680425276655,0.99715616,1817.5,1817.4,0.86449206]
[1680425278665,0.99715616,1817.5,1817.4,1.14725229]
[1680425279460,0.99815616,1817.5,1817.4,1.14725229]
[1680425279656,0.99815616,1817.5,1817.3,1.14725229]
[1680425279858,0.99815616,1817.5,1817.3,1.70589715]
[1680425280154,0.99815616,1817.5,1817.3,1.14725229]
[1680425280364,0.99815616,1817.5,1817.3,1.70591754]
[1680425280865,0.99815616,1817.5,1817.4,1.14725229]
[1680425282764,0.99815616,1817.5,1817.4,2.00073246]
[1680425282965,0.99815616,1817.5,1817.4,1.44206721]
[1680425286867,0.99815616,1817.5,1817.4,0.55866525]
[1680425287067,0.99715616,1817.5,1817.4,0.55866525]
[1680425287255,0.99715616,1817.5,1817.3,0.55866525]
[1680425290967,0.99715616,1817.5,1817.4,1.44243499]
[1680425303781,0.17315616,1817.5,1817.3,0.55866525]
[1680425303975,0.17315616,1817.5,1817.4,0.55866525]
[1680425304373,0.17315616,1817.5,1817.4,1.44249849]
[1680425304973,0.17315616,1817.5,1817.4,2.00117156]
[1680425305174,0.17315616,1817.5,1817.4,0.55866525]
[1680425305670,0.17315616,1817.5,1817.4,1.0]
[1680425305878,0.17315616,1817.5,1817.4,1.55866525]
[1680425307680,0.21426435,1817.5,1817.4,1.55866525]
[1680425308181,1.4005981,1817.7,1817.4,1.55866525]
[1680425308382,1.4005981,1817.7,1817.6,1.1542088]
[1680425309780,2.26427933,1817.7,1817.6,1.1542088]
[1680425309976,1.4005981,1817.7,1817.6,1.1542088]
[1680425310177,2.26427933,1817.7,1817.6,1.1542088]
[1680425310579,1.68868123,1817.7,1817.6,1.1542088]
[1680425310782,1.40043007,1817.7,1817.6,1.1542088]
[1680425311080,2.2641113,1817.7,1817.6,1.1542088]
[1680425311283,1.40043007,1817.7,1817.6,1.1542088]
[1680425311484,2.2641113,1817.7,1817.6,1.1542088]
[1680425313080,1.40043007,1817.7,1817.6,1.1542088]
[1680425313391,2.26416031,1817.7,1817.6,1.1542088]
[1680425313883,1.68868123,1817.7,1817.6,1.1542088]
[1680425314089,2.26418784,1817.7,1817.6,1.1542088]
[1680425314383,2.26418424,1817.7,1817.6,1.1542088]
[1680425317383,2.26418424,1817.7,1817.6,1.71287405]
[1680425317578,2.26418424,1817.7,1817.6,1.1542088]
[1680425319789,2.83985788,1817.7,1817.6,1.442761]
[1680425319975,2.26418424,1817.7,1817.5,1.442761]
[1680425320174,0.57566973,1817.6,1817.5,1.442761]
[1680425320382,2.83985397,1817.7,1817.5,0.55866525]
[1680425320584,2.83985397,1817.7,1817.6,2.00208633]
[1680425320782,2.83985397,1817.7,1817.6,1.44342108]
[1680425321687,2.83985397,1817.7,1817.5,3.00208633]
[1680425321894,2.83985397,1817.7,1817.6,3.00208633]
[1680425322389,2.83985397,1817.7,1817.6,2.00208633]
[1680425323088,1.97617274,1817.7,1817.6,2.00208633]
[1680425325688,0.57550301,1817.7,1817.6,2.00208633]
[1680425325888,0.57566973,1817.8,1817.6,3.76646525]
[1680425326191,1.43935096,1818.0,1817.8,0.825]
[1680425326386,0.57566973,1818.0,1817.9,3.82567778]
[1680425326586,0.57566973,1818.0,1817.9,1.55866525]
[1680425326991,0.86368123,1818.0,1817.9,2.71310125]
[1680425327202,1.43937531,1818.0,1817.9,1.55866525]
[1680425327391,0.57569408,1818.0,1817.9,3.00167778]
[1680425327693,0.57569408,1818.0,1817.9,2.15340754]
[1680425327995,1.43937531,1818.1,1817.9,2.15340754]
[1680425328187,0.86368123,1818.1,1818.0,0.86505173]
[1680425328493,1.43887981,1818.1,1818.0,0.86505173]
[1680425329287,0.86368123,1818.1,1818.0,0.86505173]
[1680425329486,1.43887998,1818.1,1818.0,0.86505173]
[1680425329689,1.43888084,1818.1,1818.0,0.86505173]
[1680425329894,0.86368123,1818.1,1818.0,0.86505173]
[1680425330091,1.43887832,1818.1,1818.0,0.86505173]
[1680425330290,0.57519709,1818.1,1818.0,0.86505173]
[1680425330485,0.57519709,1818.1,1818.0,1.44152101]
[1680425330689,1.43887832,1818.1,1818.0,1.44152101]
[1680425331095,0.57519709,1818.1,1818.0,1.44152101]
[1680425331296,0.57519709,1818.1,1818.0,0.57646928]
[1680425331297,1.43887832,1818.1,1818.0,0.57646928]
[1680425331490,1.43860061,1818.1,1818.0,0.57646928]
[1680425332197,0.57491938,1818.1,1818.0,0.57646928]
[1680425335599,0.71453724,1818.1,1818.0,0.57646928]
[1680425342102,0.71453724,1818.1,1817.9,2.26652101]
[1680425342807,0.71453724,1818.1,1817.9,1.40146928]
[1680425342998,0.71453724,1818.1,1817.9,2.26652101]
[1680425343200,0.71453724,1818.1,1817.9,1.40146928]
[1680425344007,0.71453724,1818.1,1817.9,2.26652101]
[1680425345209,0.71453724,1818.1,1818.0,0.57646928]
[1680425349113,0.71453724,1818.1,1817.9,2.26652101]
[1680425349318,0.71453724,1818.1,1818.0,0.57646928]
[1680425350714,0.71453724,1818.1,1817.9,2.26652101]
[1680425351408,0.71453724,1818.1,1818.0,0.57646928]
[1680425352214,0.71453724,1818.1,1817.9,1.40146928]
[1680425352413,3.2078,1818.0,1817.9,0.57646928]
[1680425352617,3.2078,1818.0,1817.8,1.44152101]
[1680425352618,5.73937215,1818.0,1817.8,1.44152101]
[1680425352820,4.92237215,1818.0,1817.9,0.57646928]
[1680425353020,5.74737215,1818.0,1817.8,0.57646928]
[1680425353218,1.825,1817.9,1817.8,0.57646928]
[1680425353418,1.825,1817.9,1817.7,0.57646928]
[1680425353419,3.50868123,1817.9,1817.7,0.57646928]
[1680425353716,5.60016446,1817.8,1817.7,0.57646928]
[1680425353916,4.60016446,1817.8,1817.7,0.57646928]
[1680425357218,4.60716446,1817.8,1817.7,0.57646928]
[1680425364620,3.2078,1817.8,1817.7,0.57646928]
[1680425364815,3.2078,1817.8,1817.7,1.44152101]
[1680425365222,3.2078,1817.8,1817.7,0.57646928]
[1680425365616,3.40588952,1817.8,1817.7,0.57646928]
[1680425365821,3.40588952,1817.8,1817.7,1.44152101]
[1680425366826,3.40588952,1817.8,1817.7,0.57646928]
[1680425367226,3.40588952,1817.8,1817.7,1.44152101]
[1680425368831,3.40588952,1817.8,1817.7,0.57646928]
[1680425371728,3.40588952,1817.8,1817.7,1.44152101]
[1680425372935,3.40588952,1817.8,1817.7,0.57646928]
[1680425373538,3.40588952,1817.8,1817.7,1.44152101]
[1680425375136,3.40588952,1817.8,1817.7,1.44123856]
[1680425375537,3.40588952,1817.8,1817.7,0.86505173]
[1680425376829,3.40588952,1817.8,1817.7,1.44128757]
[1680425377132,4.23088952,1817.8,1817.7,1.44128757]
[1680425377531,4.23088952,1817.8,1817.7,0.86505173]
[1680425384235,4.80525398,1817.8,1817.7,0.86505173]
[1680425391948,1.59745398,1817.8,1817.7,0.86505173]
[1680425392354,1.59745398,1817.8,1817.6,1.15340754]
[1680425392657,1.59745398,1817.8,1817.7,0.86493875]
[1680425393044,1.59745398,1817.8,1817.7,0.8649475]
[1680425393349,4.80525398,1817.8,1817.7,0.8649475]
[1680425394551,1.59745398,1817.8,1817.7,0.8649475]
[1680425394753,1.59745398,1817.8,1817.7,0.86515959]
[1680425395352,5.09457075,1817.8,1817.6,2.15340754]
[1680425395560,0.57538633,1817.7,1817.6,1.15340754]
[1680425395755,0.77354186,1817.7,1817.6,1.72564954]
[1680425396157,0.19815553,1817.7,1817.6,1.72564954]
[1680425396361,0.77354186,1817.7,1817.6,1.72613477]
[1680425396950,0.77354186,1817.7,1817.6,2.55013477]
[1680425397459,0.77354186,1817.7,1817.6,3.65825453]
[1680425402357,0.77354186,1817.7,1817.6,2.215242]
[1680425402761,2.02215553,1817.7,1817.5,1.15456101]
[1680425403052,3.7834572,1817.6,1817.5,1.15457378]
[1680425403357,3.7834572,1817.6,1817.5,1.15458884]
[1680425403658,4.64694899,1817.6,1817.5,1.15458884]
[1680425404061,4.07129179,1817.6,1817.5,1.15458884]
[1680425404759,4.89629179,1817.6,1817.5,1.15458884]
[1680425405468,5.4717273,1817.6,1817.5,1.15458884]
[1680425405659,5.4717273,1817.6,1817.5,0.36048884]
[1680425405873,4.89629179,1817.6,1817.5,0.86569476]
[1680425406166,5.14627844,1817.6,1817.5,0.86569476]
[1680425407659,4.85803954,1817.6,1817.3,1.99856021]
[1680425407859,1.11347844,1817.6,1817.5,0.86540446]
[1680425408066,5.14427844,1817.6,1817.5,0.86540446]
[1680425409265,4.85592254,1817.6,1817.5,0.86540446]
[1680425409465,5.71941433,1817.6,1817.5,0.86540446]
[1680425409667,5.14427844,1817.6,1817.5,0.57685109]
[1680425410361,5.96127844,1817.6,1817.5,0.57685109]
[1680425410564,5.96127844,1817.6,1817.4,0.57685109]
[1680425410565,6.24947912,1817.6,1817.4,0.57685109]
[1680425410867,1.818,1817.5,1817.4,0.57685109]
[1680425411056,2.68005324,1817.5,1817.3,0.57685109]
[1680425411256,4.59950322,1817.4,1817.3,1.44225555]
[1680425412365,4.59950322,1817.4,1817.3,0.86540446]
[1680425412561,4.0248,1817.4,1817.3,0.86540446]
[1680425412762,4.59950322,1817.4,1817.3,0.86540446]
[1680425413169,4.59950322,1817.4,1817.3,1.44171989]
[1680425413170,4.0248,1817.4,1817.3,1.44171989]
[1680425413568,4.0248,1817.4,1817.3,0.57631543]
[1680425417275,4.0248,1817.4,1817.2,1.44171989]
[1680425417476,4.0248,1817.4,1817.3,0.57631543]
[1680425417677,4.0248,1817.4,1817.2,1.44171989]
[1680425418075,4.0248,1817.4,1817.3,0.57631543]
[1680425419179,4.0248,1817.4,1817.2,1.44171989]
[1680425419881,4.0248,1817.4,1817.2,0.57631543]
[1680425421968,4.0248,1817.4,1817.3,0.57631543]
[1680425423080,4.0248,1817.4,1817.2,1.44171989]
[1680425423477,2.645,1817.3,1817.1,1.44171989]
[1680425423676,4.8558,1817.2,1817.1,0.57631543]
[1680425423880,5.8558,1817.2,1817.0,0.57631543]
[1680425424178,1.824,1817.1,1817.0,0.57631543]
[1680425424573,1.824,1817.1,1816.9,1.44171989]
[1680425424873,4.0328,1817.0,1816.9,0.57631543]
[1680425425080,4.0328,1817.0,1816.8,1.44171989]
[1680425425281,4.0328,1817.0,1816.8,0.57631543]
[1680425425882,0.31766706,1816.9,1816.8,0.57631543]
[1680425429086,0.31766706,1816.9,1816.7,1.44171989]
[1680425429282,0.31766706,1816.9,1816.8,0.57631543]
[1680425430987,0.31766706,1816.9,1816.7,1.44171989]
[1680425431685,0.31766706,1816.9,1816.7,0.57631543]
[1680425434794,0.31766706,1816.9,1816.7,1.57631543]
[1680425438193,0.31766706,1816.9,1816.8,6.19188764]
[1680425438384,0.31766706,1816.9,1816.8,6.76820307]
[1680425443090,0.31766706,1816.9,1816.8,7.63360753]
[1680425443286,0.31766706,1816.9,1816.8,6.76820307]
[1680425443490,0.31766706,1816.9,1816.8,7.63360753]
[1680425443891,0.31766706,1816.9,1816.8,6.76820307]
[1680425444093,0.31766706,1816.9,1816.8,7.0572921]
[1680425445097,0.31766706,1816.9,1816.8,7.8822921]
[1680425445597,4.0288,1817.2,1816.8,7.8822921]
[1680425445799,4.0288,1817.2,1816.9,0.57537845]
[1680425445992,4.0288,1817.2,1816.9,1.57537845]
[1680425446196,4.0288,1817.2,1817.0,0.57537845]
[1680425448296,4.0288,1817.2,1817.1,6.13506583]
[1680425449599,1.39270322,1817.4,1817.1,6.71044428]
[1680425449895,4.0258,1817.4,1817.1,7.57584874]
[1680425450896,4.0258,1817.4,1817.2,0.57537845]
[1680425451197,4.0258,1817.4,1817.2,1.57537845]
[1680425451601,4.0258,1817.4,1817.2,0.57537845]
[1680425455111,4.60050322,1817.4,1817.2,0.57537845]
[1680425455803,0.24231813,1817.3,1817.2,0.57537845]
[1680425456106,4.60050322,1817.4,1817.2,0.57537845]
[1680425457005,3.78250322,1817.4,1817.2,0.57537845]
[1680425465010,3.78250322,1817.4,1817.2,1.44078291]
[1680425469017,3.78250322,1817.4,1817.3,0.57537845]
[1680425469815,0.57470322,1817.4,1817.3,0.57537845]
[1680425470818,0.81994179,1817.4,1817.3,0.57537845]
[1680425471316,0.24523857,1817.4,1817.3,1.40037845]
[1680425476727,0.24523857,1817.4,1817.3,1.69040446]
[1680425477231,0.24523857,1817.4,1817.3,2.26662714]
[1680425478226,0.24523857,1817.4,1817.3,1.40122268]
[1680425479035,0.24523857,1817.4,1817.3,2.26662714]
[1680425480325,0.24523857,1817.4,1817.3,1.40122268]
[1680425481031,0.24523857,1817.4,1817.3,2.26662714]
[1680425482730,0.24523857,1817.4,1817.3,1.69040446]
[1680425483728,0.81994179,1817.4,1817.3,2.26685304]
[1680425484441,4.02774179,1817.4,1817.3,1.40144858]
[1680425484628,4.02774179,1817.4,1817.3,2.26685304]
[1680425484934,4.02774179,1817.4,1817.3,1.69040446]
[1680425488325,0.81994179,1817.4,1817.3,1.69040446]
[1680425491339,0.81994179,1817.4,1817.3,0.825]
[1680425491738,0.81994179,1817.4,1817.3,1.97470674]
[1680425492239,0.81994179,1817.4,1817.3,0.825]
[1680425493138,0.81994179,1817.4,1817.3,1.97470674]
[1680425494538,0.81994179,1817.4,1817.3,0.825]
[1680425494740,0.81994179,1817.4,1817.3,1.97470674]
[1680425495040,1.68199503,1817.4,1817.3,1.97470674]
[1680425495340,1.10729181,1817.4,1817.3,1.97470674]
[1680425497030,1.10729181,1817.4,1817.3,1.14970674]
[1680425503348,0.24523857,1817.4,1817.3,3.80258837]
[1680425503544,0.14296223,1817.4,1817.3,9.55767724]
[1680425507646,1.43761942,1817.6,1817.3,9.55767724]
[1680425507847,1.43761942,1817.6,1817.5,1.15408227]
[1680425508047,0.57556618,1817.6,1817.4,2.97908227]
[1680425508454,0.57556618,1817.6,1817.5,1.15408227]
[1680425508656,0.57556618,1817.6,1817.4,6.18688227]
[1680425508856,0.57556618,1817.6,1817.5,1.15408227]
[1680425509055,0.57556618,1817.6,1817.4,6.18688227]
[1680425510154,0.57556618,1817.6,1817.5,0.86526126]
[1680425511558,0.57556618,1817.6,1817.4,6.18688227]
[1680425512058,0.57556618,1817.6,1817.5,0.86514265]
[1680425515861,0.7185559,1817.6,1817.5,0.86514265]
[1680425518369,0.7185559,1817.6,1817.5,6.69635191]
[1680425519272,0.7185559,1817.6,1817.5,5.83120926]
[1680425519771,0.57556618,1817.6,1817.5,5.83120926]
[1680425520070,0.57556618,1817.6,1817.5,6.69620726]
[1680425524980,0.61485295,1817.6,1817.5,6.69620726]
[1680425526672,24.71485295,1817.6,1817.5,6.69620726]
[1680425527078,24.71485295,1817.6,1817.5,7.52120726]
[1680425528280,24.13928677,1817.6,1817.5,7.52120726]
[1680425530085,24.71485295,1817.6,1817.5,7.52120726]
[1680425530592,24.13928677,1817.6,1817.5,6.65620926]
[1680425531085,0.03928677,1817.6,1817.5,6.65620926]
[1680425531282,0.57556618,1817.7,1817.5,6.65620926]
[1680425531485,0.57556618,1817.7,1817.6,1.44140078]
[1680425531685,0.57556618,1817.7,1817.6,2.44140078]
[1680425531686,24.67556618,1817.7,1817.6,2.44140078]
[1680425531879,24.67556618,1817.7,1817.6,1.44140078]
[1680425534988,24.67556618,1817.7,1817.6,0.86484047]
[1680425537188,24.67556618,1817.7,1817.6,1.68384047]
[1680425537884,24.66781827,1817.7,1817.6,1.68384047]
[1680425538091,24.66781827,1817.7,1817.6,8.04252284]
[1680425544095,24.66781827,1817.7,1817.6,7.17768237]
[1680425546198,0.56781827,1817.7,1817.6,8.33176464]
[1680425546596,0.86205324,1817.8,1817.6,12.0769279]
[1680425546801,0.86205324,1817.9,1817.7,2.68918969]
[1680425547099,0.86205324,1817.9,1817.8,8.45886843]
[1680425547290,0.86205324,1817.9,1817.8,9.28386843]
[1680425547496,0.86205324,1817.9,1817.8,8.28386843]
[1680425548003,4.35949247,1818.0,1817.8,8.28386843]
[1680425548199,4.35949247,1818.0,1817.9,0.825]
[1680425551203,3.2078,1818.0,1817.9,0.825]
[1680425551406,4.35856945,1818.0,1817.9,0.825]